Cogmind - Beta 13 @@@ ROGUE MODE // 2024.05.28 @ 23:07:58 Player: Heliostats Result: Destroyed by Y-54 Guardian with Flak Gun Performance ------------- Evolutions (0) 0 Regions Visited (3) 600 Robots Destroyed (41) 205 Value Destroyed (977) 977 Prototype IDs (0) 0 Alien Tech Used (0) 0 Bonus (0) 0 TOTAL SCORE: 1782 Bonus ------- None Cogmind --------- Core Integrity 0/250 Matter 276/300 Energy 100/100 System Corruption 0% Temperature Warm (103) Movement Rolling (110) Location -7/Recycling Parts ------- > --- POWER (1) -------- (None) > --- PROPULSION (2) --- Subdweller Monowheel > --- UTILITY (2) ------ Signal Interpreter > --- WEAPON (2) ------- (None) > --- INVENTORY (5) ---- Light Ion Engine Improved Terrain Scanner Battle Cannon Grenade Launcher Peak State ------------ > --- POWER ------------ Light Nuclear Core > --- PROPULSION ------- Subdweller Monowheel > --- UTILITY ---------- Sensor Array Signal Interpreter > --- WEAPON ----------- Improved Light Cannon Improved Light Cannon > --- INVENTORY -------- Light Ion Engine Scrap Engine Battle Cannon Grenade Launcher [Rating: 13] Favorites ----------- Power Light Ion Engine Engine Light Ion Engine Power Core Light Nuclear Core Propulsion Light Treads Treads Light Treads Wheel Subdweller Monowheel Utility Sensor Array Device Sensor Array Processor Signal Interpreter Protection Light Armor Plating Weapon Improved Light Cannon Energy Gun EM Pulse Gun Ballistic Cannon Improved Light Cannon Launcher Grenade Launcher Build | -11 -10 -10 -7 ------- Run | Yrd Mat Sub Rec Slots Evolved . | . . . . Power . | . . . . Propulsion . | . . . . Utility . | . . . . Weapon . | . . . . Parts Attached 28 | 6 18 4 . Power 3 | 1 1 1 . Engine 2 | 1 1 . . Core 1 | . . 1 . Reactor . | . . . . Propulsion 4 | 2 1 1 . Treads 3 | 2 1 . . Leg . | . . . . Wheel 1 | . . 1 . Hover . | . . . . Flight . | . . . . Utility 5 | 1 4 . . Device 2 | 1 1 . . Storage . | . . . . Processor 1 | . 1 . . Hackware . | . . . . Protection 2 | . 2 . . Artifact . | . . . . Weapon 16 | 2 12 2 . Energy Gun 2 | 2 . . . Energy Cannon . | . . . . Ballistic Gun . | . . . . Ballistic Cannon 12 | . 10 2 . Launcher 2 | . 2 . . Special Weapon . | . . . . Impact Weapon . | . . . . Slashing Weapon . | . . . . Piercing Weapon . | . . . . Special Melee Weapon . | . . . . Unidentified Prototypes . | . . . . Parts Lost 6 | . 1 1 4 Power 1 | . . . 1 Propulsion 2 | . 1 1 . Utility 1 | . . . 1 Weapon 2 | . . . 2 Highest Loss Streak 4 | . 1 1 4 To Critical Strikes . | . . . . Average Slot Usage (%) 89 | . 93 84 75 Engine 11 | . 14 7 . Core 2 | . . 6 14 Treads 17 | . 22 12 . Device 14 | . 15 14 9 Processor 10 | . 8 14 14 Protection 2 | . 3 . . Energy Gun 1 | . 2 . . Ballistic Cannon 25 | . 24 28 23 Naked Turns . | . . . . Heaviest Build 14 | 8 13 14 14 Greatest Support 40 | 40 40 20 20 Greatest Overweight (x) 4 | . . 4 . Average Overweight (x) . | . . . . Largest Inventory Capacity 5 | 5 5 5 5 Average Capacity 5 | 5 5 5 5 Most Carried 5 | 3 5 5 5 Average Carried 4 | . 3 4 4 Final Capacity 5 | 5 5 5 5 Final Carried 5 | . 5 5 4 Class Distribution -------------------- 97% | Mutant Dominant Class ---------------- Mutant | -10/Materials Mutant | -10/Subcaves Mutant | -7/Recycling Resources | -11 -10 -10 -7 ----------- Run | Yrd Mat Sub Rec Matter Collected 1239 | 250 599 390 . Remotely . | . . . . Salvage Created 989 | 39 734 216 . Parts 85 | 5 59 21 . Haulers Intercepted 2 | . 2 . . Recyclers Shooed . | . . . . Parts Field Recycled . | . . . . Retrieved Matter . | . . . . Parts Self-Destructed 13 | . . 13 . Prevented . | . . . . Kills | -11 -10 -10 -7 ------- Run | Yrd Mat Sub Rec Combat Hostiles Destroyed 27 | . 17 10 . Cannons 27 | . 17 10 . Classes Destroyed 10 | 1 6 3 . Worker 2 | . 2 . . Builder 3 | . 3 . . Tunneler 2 | 2 . . . Hauler 2 | . 2 . . Turret 2 | . . 2 . Watcher 3 | . 3 . . Swarmer 7 | . 3 4 . Grunt 15 | . 14 1 . Sentry 1 | . . 1 . Subdweller 4 | . . 4 . Best Kill Streak 4 | 2 4 4 . Combat Bots Only 4 | . 3 4 . Max Kills in Single Turn 2 | 2 2 1 . Gunslinging . | . . . . Exploded . | . . . . Melee . | . . . . Uniques/NPCs Destroyed . | . . . . Combat | -11 -10 -10 -7 -------- Run | Yrd Mat Sub Rec Hostile Shots Fired 218 | . 62 102 54 Missed 79 | . 18 41 20 Damage Taken 1366 | . 496 616 254 Core 250 | . 100 85 65 Absorbed by Shields . | . . . . Core Remaining (%) 100 | 100 . . . Volleys Fired 113 | 1 71 34 7 Largest 2 | 2 2 2 2 Hottest 80 | 80 78 78 78 Shots Fired 218 | 2 139 68 9 Gun 17 | 2 15 . . Cannon 198 | . 121 68 9 Launcher 3 | . 3 . . Special . | . . . . Kinetic 198 | . 121 68 9 Thermal . | . . . . Explosive 3 | . 3 . . Electromagnetic 17 | 2 15 . . Robot Hit Streak 13 | 1 8 13 4 Robot Miss Streak 7 | . 7 2 2 Penetration Max . | . . . . Secondary Targets . | . . . . Shots Hit Robots 108 | 1 64 37 6 Core Hits 52 | 2 31 17 2 Critical Kills . | . . . . Critical Parts Destroyed . | . . . . Critical Strikes 6 | . 4 2 . Blast 6 | . 4 2 . Melee Attacks . | . . . . Impact . | . . . . Slashing . | . . . . Piercing . | . . . . Sneak Attacks . | . . . . Combat Hostiles . | . . . . Follow-up Attacks . | . . . . Damage Inflicted 2047 | 30 1134 753 130 Guns 81 | 30 51 . . Cannons 1946 | . 1063 753 130 Explosions 18 | . 18 . . Melee . | . . . . Ramming 2 | . 2 . . Kinetic 1946 | . 1063 753 130 Thermal . | . . . . Explosive 18 | . 18 . . Electromagnetic 81 | 30 51 . . Impact . | . . . . Slashing . | . . . . Piercing . | . . . . Highest Corruption . | . . . . Average Corruption . | . . . . Corruption Purged . | . . . . Corruption Blocked . | . . . . Overload Shots . | . . . . Overflow Damage 14 | . 2 12 . Projectiles 14 | . 2 12 . Explosions . | . . . . Melee . | . . . . Knockbacks 23 | . 15 8 . Impact . | . . . . Kinetic 22 | . 14 8 . Secondary 1 | . 1 . . Self-Inflicted Damage 32 | . 32 . . Shots 1 | . 1 . . Rammed 5 | . 5 . . Targets Rammed 5 | . 5 . . Kicked . | . . . . Crushed . | . . . . Highest Temperature 233 | 18 233 4 103 Average Temperature 51 | 12 50 4 69 Received Heat Transfer 447 | . 198 165 84 Siege Activations . | . . . . Robots Corrupted . | . . . . Combat Hostiles . | . . . . Parts Fried . | . . . . Impact Corruptions . | . . . . Robots Melted . | . . . . Combat Hostiles . | . . . . Parts Melted . | . . . . Heat Transferred . | . . . . Parts Sabotaged . | . . . . Parts Stolen . | . . . . Parts Stripped . | . . . . Power Chain Reactions . | . . . . Alert | -11 -10 -10 -7 ------- Run | Yrd Mat Sub Rec Peak Influence 274 | 10 226 . 274 Initial 274 | . 6 . 274 Average 77 | 1 76 . 265 Maximum Alert Level 1 | . 1 . 1 Low Security (%) 98 | 100 99 . . Level 1 1 | . . . 100 Level 2 . | . . . . Level 3 . | . . . . Level 4 . | . . . . Level 5 . | . . . . High Security . | . . . . Max Security . | . . . . Squads Dispatched 4 | . 4 . . Investigation 3 | . 3 . . Extermination . | . . . . Reinforcement 1 | . 1 . . Assault . | . . . . Garrison . | . . . . Intercept . | . . . . Searches Triggered . | . . . . Construction Impeded . | . . . . Haulers Reinforced . | . . . . Active Scanning Responses . | . . . . Cargo Convoy Interrupts . | . . . . Stealth | -11 -10 -10 -7 --------- Run | Yrd Mat Sub Rec Distress Signals . | . . . . Communications Jammed . | . . . . Distress Signals . | . . . . Times Spotted 67 | . 26 40 1 Peak Tracking Total 6 | . 4 6 1 Tactical Retreats 4 | . . 4 . Traps | -11 -10 -10 -7 ------- Run | Yrd Mat Sub Rec Traps Triggered 5 | . 4 1 . Indirectly . | . . . . Trap Hack Attempts . | . . . . Triggered . | . . . . Disarmed . | . . . . Reprogrammed 1 | . 1 . . Reused . | . . . . Traps Extracted . | . . . . Installed . | . . . . Triggered . | . . . . Machines | -11 -10 -10 -7 ---------- Run | Yrd Mat Sub Rec Machines Disabled 4 | . 1 3 . Max in Single Turn 1 | . 1 1 . Machines Repaired . | . . . . Machines Dismantled . | . . . . Machines Sabotaged . | . . . . Overloaded Fab Kills . | . . . . Hacking | -11 -10 -10 -7 --------- Run | Yrd Mat Sub Rec Machines Accessed 8 | . 8 . . Terminals 6 | . 6 . . Fabricators . | . . . . Repair Stations . | . . . . Recycling Units 2 | . 2 . . Scanalyzers . | . . . . Garrison Access . | . . . . Total Hacks 22 | . 22 . . Successful 15 | . 15 . . Failed 7 | . 7 . . Catastrophic 3 | . 3 . . Database Lockouts . | . . . . Manual . | . . . . Terminals 18 | . 18 . . Fabricators . | . . . . Repair Stations . | . . . . Recycling Units 4 | . 4 . . Scanalyzers . | . . . . Garrison Access . | . . . . Terminal Hacks 12 | . 12 . . Robot Analysis 1 | . 1 . . Repair Station Index 1 | . 1 . . Alert Level 4 | . 4 . . Unreport Threat 1 | . 1 . . Reprogram Traps 1 | . 1 . . Maintenance Status 1 | . 1 . . Hauler Manifests 1 | . 1 . . Zone Layout 2 | . 2 . . Fabricator Hacks . | . . . . Repair Station Hacks . | . . . . Recycling Unit Hacks 3 | . 3 . . Retrieve Components 3 | . 3 . . Scanalyzer . | . . . . Garrison Access Hacks . | . . . . Unauthorized Hacks . | . . . . Terminals . | . . . . Fabricators . | . . . . Repair Stations . | . . . . Recycling Units . | . . . . Scanalyzers . | . . . . Garrison Access . | . . . . Data Cores Recovered . | . . . . Used . | . . . . Hacking Detections 5 | . 5 . . Full Trace Events 3 | . 3 . . Feedback Events . | . . . . Feedback Blocked . | . . . . Robot Schematics Acquired . | . . . . Robots Built . | . . . . Authchips . | . . . . Time . | . . . . Total Robot Build Rating . | . . . . Part Schematics Acquired . | . . . . Parts Built . | . . . . Authchips . | . . . . Time . | . . . . Total Part Build Rating . | . . . . Parts Repaired . | . . . . Time . | . . . . Parts Recycled . | . . . . Recycled Matter . | . . . . Retrieved Matter . | . . . . Retrieved Components 15 | . 15 . . Parts Scanalyzed . | . . . . Part Schematics Acquired . | . . . . Parts Damaged . | . . . . Bothacking | -11 -10 -10 -7 ------------ Run | Yrd Mat Sub Rec Used RIF Installer . | . . . . Robots Hacked . | . . . . Non-combat . | . . . . Combat . | . . . . Robot Hacks Applied . | . . . . Relay Couplers Released . | . . . . Fabnet Peak Effective % . | . . . . Robots Rewired . | . . . . Allies Hacked . | . . . . Hacks Repelled . | . . . . Allies | -11 -10 -10 -7 -------- Run | Yrd Mat Sub Rec Total Allies . | . . . . Largest Group . | . . . . Highest-Rated Group . | . . . . Highest-Rated Ally . | . . . . Total Orders . | . . . . Ally Attacks . | . . . . Total Damage . | . . . . Kills . | . . . . Allies Corrupted . | . . . . Allies Melted . | . . . . Intel | -11 -10 -10 -7 ------- Run | Yrd Mat Sub Rec Robot Analysis Total 1 | . 1 . . Derelict Logs Recovered 2 | . . 2 . Drone Launches . | . . . . Drone Recoveries . | . . . . Exploration | -11 -10 -10 -7 ------------- Run | Yrd Mat Sub Rec Turns Passed 3195 | 67 1759 1335 34 Spaces Moved 1706 | 38 892 764 12 Core 17 | 7 . 10 . Treads 1616 | 31 892 693 . Legs . | . . . . Wheels 73 | . . 61 12 Hover . | . . . . Flight . | . . . . Fastest Speed 50 | 50 160 110 110 Average Speed 157 | 139 160 157 110 Slowest Speed 250 | 160 160 250 110 Overloaded Moves . | . . . . Propulsion Burnouts . | . . . . Robots Hopped . | . . . . Cave-ins Triggered . | . . . . Exploration Rate (%) 38 | 4 99 46 3 Regions Visited 3 Branch Regions 2 Pre-discovered Areas 1 | . . 1 . Known Exits Taken 2 | . 1 1 . Unknown Exits Taken 1 | 1 . . . Scrap Searched 5 | . . 5 . Spaces Dug 11 | . 11 . . Terrain Destroyed 19 | . 19 . . Melee . | . . . . Projectile . | . . . . AOE 19 | . 19 . . Terrain Rammed . | . . . . Walls Destroyed . | . . . . Machines Disabled . | . . . . Actions | -11 -10 -10 -7 --------- Run | Yrd Mat Sub Rec Total 1982 | 50 1080 827 25 Wait 94 | . 70 23 1 Move 1703 | 37 891 763 12 Hop . | . . . . Pick Up 23 | 6 14 1 2 Fast Attach 5 | . 4 1 . Attach 8 | 6 2 . . Detach . | . . . . Swap 15 | . 12 3 . Drop 16 | . 11 2 3 Fire 113 | 1 71 34 7 Melee . | . . . . Ram . | . . . . Kick . | . . . . Crush 5 | . 5 . . Escape Stasis . | . . . . Rewire . | . . . . Trap . | . . . . Miscellaneous . | . . . . Route ------- -11/Scrapyard -10/Materials (discovered 6 exits: *Mat x3 / *Min x2 / *Sub) -10/Subcaves -7/Recycling History --------- Turn | Location | Event 19 | -11/Scrapyard | Discovered new exit (range 16) 68 | -11/Scrapyard | Entered Materials 317 | -10/Materials | Build established: Mutant 434 | -10/Materials | Discovered new exit (range 15) 616 | -10/Materials | Discovered new exit (range 16) 875 | -10/Materials | Discovered new exit (range 13) 1191 | -10/Materials | Discovered new exit (range 13) 1212 | -10/Materials | Identified exit to Mines 1366 | -10/Materials | Discovered new exit (range 12) 1380 | -10/Materials | Identified exit to Materials 1815 | -10/Materials | Discovered new exit (range 8) 1825 | -10/Materials | Identified exit to Subcaves 1827 | -10/Materials | Entered Subcaves 1831 | -10/Subcaves | Learned Materials stockpile data 1912 | -10/Subcaves | Learned location of Zion (-7) 1912 | -10/Subcaves | Met a Zionite searching for "candidates" 1920 | -10/Subcaves | Learned Materials stockpile data 2047 | -10/Subcaves | Core integrity fell below 50% 2247 | -10/Subcaves | Shifting Twisted Machinery released Shrapnel Trap 2332 | -10/Subcaves | A swath of the cavern ceiling suddenly collapsed 2409 | -10/Subcaves | Discovered new exit (range 9) 2469 | -10/Subcaves | Identified exit to Recycling 3162 | -10/Subcaves | Entered Recycling 3166 | -7/Recycling | Found Scrap Engine 3187 | -7/Recycling | Core integrity fell below 20% 3196 | -7/Recycling | Destroyed by Y-54 Guardian with Flak Gun Last Messages --------------- 03079_ Acquired 6 matter. 03082_ Acquired 3 matter. 03087_ Acquired 17 matter. 03089_ Acquired 14 matter. 03094_ Acquired Sub. Monowheel. 03098_ Acquired 1 matter. A mysterious object appears at your location! LOCATION=RECYCLING GOAL=ESCAPE 03165_ Dropped Imp. Light Cannon. 03165_ Dropped Imp. Terrain Scanner. 03166_ Acquired Scrap Engine. 03168_ Dropped Scrap Engine. 03169_ Acquired Imp. Terrain Scanner. 03179_ Y-54 Guardian springs to life. 03183_ Sensor Array destroyed. 03183_ Imp. Light Cannon destroyed. 03193_ R-06 Scavenger collects Scrap Engine. 03193_ Lgt. Nuclear Core destroyed. 03196_ Imp. Light Cannon destroyed. Map ----- +----------------------------------------------------+ | | | | | | | | | | | | | | | | | ???????????????????????????????? | | ???????????????????????????????? | | ???????????????????????????????? | | ???????????????????????????????? | | ???????????????????????????????? | | ???????????????????????????????? | | ???????????????????????????????? | | ????#####??????????????????????? | | ????# #??????????????????????? | | ????# ]#??????????????????????? | | ????# r#??????????????????????? | | ????# #??????????????????????? | | ????# #??????????????????????? | | ???## #??????????????????????? | | ???#%% #??????????????????????? | | ???##Y #??????????????????????? | | ????# #??????????????????????? | | ????# @#??????????????????????? | | ???# #?????????????????????? | | ???# ????????????????????? | | ???# ???????????????????? | | ???# ??????????????????? | | ???# ####"Y????????????????? | | ???#######????""???????????????? | | ???????????????#???????????????? | | ???????????????????????????????? | | ???????????????????????????????? | | ???????????????????????????????? | | ???????????????????????????????? | | ???????????????????????????????? | | ???????????????????????????????? | | ???????????????????????????????? | | ???????????????????????????????? | | ???????????????????????????????? | | ???????????????????????????????? | | ???????????????????????????????? | | ???????????????????????????????? | | ???????????????????????????????? | | ???????????????????????????????? | | ???????????????????????????????? | | ???????????????????????????????? | | ???????????????????????????????? | +----------------------------------------------------+ Best States ------------- Heat Dissipation 25 Energy Generation 14 Energy Capacity 160 Matter Stores 300 Matter Capacity 300 Sight Range 16 Robot Scan Range 14 Terrain Scan Range 16 Terrain Scan Density 10 Armor Coverage 150 Evasion (%) 40 Recoil Reduction 2 Item Schematics ----------------- None Robot Schematics ------------------ None Fabricated ------------ Nothing Alien Tech Used ----------------- None Achievements -------------- None Challenges ------------ None Game ------ Seed CargoFluxConstruct Manual? 0 Play Time 00:22:50 Cumulative 14.4 hours Start 2024.05.28 @ 22:44:05 End 2024.05.28 @ 23:07:58 Sessions 1 Manual Loads 0 Difficulty Rogue Special Mode None Game No. 22 Rogue 10 Adventurer 12 Explorer 0 Win Type - Total 0 Types 0/0/0/0/0/0/0/0/0 Lore% 17 Gallery% 19 Achievement% 15 Wizard Run 0 Options --------- Layout 1 ASCII 0 Keyboard 0 Movement Mouse Keybinds 0 Fullscreen 2 Font 24/Smallcaps Map View 50x35 Zoom Use 0% Tactical HUD 1 Map Filters NONE Filters NONE Steam 1 RUN: 690e012f-18b4-46b3-9322-076a7f26c441